[Event "11th LCC FIDE Open 2019"]
[Site "London"]
[Date "2019.11.30"]
[Round "2.36"]
[White "Chapman, Matt"]
[Black "Wu, Li"]
[Result "1/2-1/2"]
[ECO "A47"]
[WhiteElo "1937"]
[BlackElo "2293"]
[Annotator "NA"]
[PlyCount "80"]
[EventDate "2019.11.29"]
[EventType "swiss"]
[EventCountry "ENG"]
[SourceTitle "playchess.com"]
[Source "ChessBase"]
[SourceQuality "1"]
[TimeControl "40/5400+30:1800+30"]

1. d4 {[%emt 0:00:00]} Nf6 {[%emt 0:15:06]} 2. Nf3 {[%emt 0:00:00]} e6 {[%emt 0:01:20]} 3. Bf4 {[%emt 0:00:34]} b6 {[%emt 0:01:15]} 4. e3 {[%emt 0:00:58]} Bb7 {[%emt 0:00:24]} 5. Nbd2 {[%emt 0:00:58]} c5 {[%emt 0:00:23]} 6. c3 {[%emt 0:00:31]} Be7 {[%emt 0:01:22]} 7. h3 {[%emt 0:00:59]} O-O {[%emt 0:04:35]} 8. Bd3 {[%emt 0:01:32]} cxd4 {[%emt 0:01:03]} 9. exd4 {[%emt 0:02:14]} d6 {[%emt 0:02:31]} 10. O-O {[%emt 0:03:57]} Ba6 {[%emt 0:02:11] A47: 1 d4 Nf6 2 Nf3 b6: Torre, London and Colle Systems} (10... Nbd7 11. Qe2 a6 12. a4 Re8 13. Bh2 h6 14. Rfe1 Bf8 15. Nc4 Qc7 16. Ne3 Nd5 17. Nxd5 Bxd5 18. Bxa6 Bxf3 19. gxf3 {1-0 (34) Carlsen,M (2837)-Akobian,V (2647) Riadh 2017}) 11. Bxa6 {[%emt 0:02:56]} Nxa6 {[%emt 0:00:03]} 12. a4 {[%emt 0:00:15]} Nc7 {[%emt 0:03:38]} 13. c4 $146 {[%emt 0:06:40]} ({Predecessor:} 13. Ne1 Qd7 14. Nd3 a6 15. Bg3 b5 16. Qf3 Nfd5 17. Ra2 {½-½ (36) Miladinovic,I (2545)-Drasko,M (2453) Niksic 2016}) 13... a5 {[%emt 0:06:17]} 14. Qe2 {[%emt 0:04:58]} Na6 {[%emt 0:00:44]} 15. b3 {[%emt 0:02:48]} Qd7 {[%emt 0:05:39]} 16. Nb1 {[%emt 0:06:55]} Rfd8 {[%emt 0:09:16]} 17. Nc3 {[%emt 0:02:29]} Nb4 {[%emt 0:08:12]} 18. Rfd1 {[%emt 0:02:39]} Rac8 {[%emt 0:03:21]} 19. Rac1 {[%emt 0:03:13]} Qb7 $11 {[%emt 0:02:43]} 20. Re1 {[%emt 0:08:18]} h6 {[%emt 0:08:58]} 21. g4 {[%emt 0:10:19]} d5 {[%emt 0:03:57]} 22. Nb5 {[%emt 0:03:36]} Ne8 {[%emt 0:05:13]} 23. Ne5 {[%emt 0:13:08]} Nd6 {[%emt 0:04:10]} 24. Nxd6 {[%emt 0:00:59]} Bxd6 {[%emt 0:00:03]} 25. Qf3 {[%emt 0:00:17]} f6 {[%emt 0:05:39]} 26. Ng6 {[%emt 0:02:22]} Qf7 {[%emt 0:00:04]} 27. Bxd6 {[%emt 0:03:59]} Rxd6 {[%emt 0:00:03]} 28. Nf4 {[%emt 0:00:57]} dxc4 {[%emt 0:00:07]} 29. Rxc4 {[%emt 0:01:24]} Rcd8 {[%emt 0:03:22]} 30. Qe4 {[%emt 0:02:27]} Nd5 {[%emt 0:01:09]} 31. Rec1 {[%emt 0:02:35]} Nxf4 {[%emt 0:00:54]} 32. Qxf4 {[%emt 0:00:06]} Qb7 {[%emt 0:00:08]} 33. Rc7 {[%emt 0:02:08]} Qd5 {[%emt 0:00:04]} 34. Ra7 {[%emt 0:01:08]} R8d7 {[%emt 0:01:27]} 35. Rxd7 {[%emt 0:01:29]} Rxd7 {[%emt 0:00:02]} 36. Qb8+ {[%emt 0:00:35]} Kh7 {[%emt 0:00:15]} 37. Qxb6 {[%emt 0:00:06]} Rb7 {[%emt 0:00:27]} 38. Qc5 {[%emt 0:00:55]} Qxb3 {[%emt 0:00:06]} 39. Qc6 {[%emt 0:05:00]} Qd5 {[%emt 0:02:45]} 40. Qxd5 {[%emt 0:00:25]} exd5 {[%emt 0:00:05]} 1/2-1/2

[Event "11th LCC FIDE Open 2019"]
[Site "London"]
[Date "2019.11.30"]
[Round "2.37"]
[White "Zapolskis, Antanas"]
[Black "Penna, Tommaso"]
[Result "1-0"]
[ECO "D00"]
[WhiteElo "2280"]
[BlackElo "2007"]
[Annotator "NA"]
[PlyCount "89"]
[EventDate "2019.11.29"]
[EventType "swiss"]
[EventCountry "ENG"]
[SourceTitle "playchess.com"]
[Source "ChessBase"]
[SourceQuality "1"]
[TimeControl "40/5400+30:1800+30"]

1. d4 {[%emt 0:00:00]} d5 {[%emt 0:00:31]} 2. c3 {[%emt 0:00:00]} Nf6 {[%emt 0:00:43]} 3. Bg5 {[%emt 0:00:36]} Ne4 {[%emt 0:02:34]} 4. Bf4 {[%emt 0:01:56]} e6 {[%emt 0:11:18]} 5. Nd2 $11 {[%emt 0:07:42]} Nxd2 {[%emt 0:04:38]} 6. Qxd2 {[%emt 0:00:13]} Bd6 {[%emt 0:00:16]} 7. Nf3 {[%emt 0:00:52]} O-O {[%emt 0:05:17]} 8. e3 {[%emt 0:03:34]} c5 {[%emt 0:09:55]} 9. Bd3 {[%emt 0:12:47]} Nc6 {[%emt 0:02:08]} 10. O-O {[%emt 0:23:47]} Qe7 {[%emt 0:10:40]} 11. Bxd6 {[%emt 0:15:36]} Qxd6 {[%emt 0:00:44]} 12. dxc5 {[%emt 0:00:21]} Qxc5 {[%emt 0:00:41]} 13. Qc2 {[%emt 0:00:21]} h6 {[%emt 0:03:01]} 14. e4 {[%emt 0:00:48]} Bd7 {[%emt 0:12:10]} 15. exd5 {[%emt 0:02:57]} exd5 {[%emt 0:00:38]} 16. Bf5 {[%emt 0:01:36]} Rad8 {[%emt 0:01:08]} 17. Rad1 {[%emt 0:03:01]} d4 {[%emt 0:10:51]} 18. Bh7+ {[%emt 0:00:16]} Kh8 {[%emt 0:00:06]} 19. cxd4 {[%emt 0:00:07]} Qa5 {[%emt 0:06:10]} 20. Be4 {[%emt 0:00:55]} Bg4 {[%emt 0:03:53]} 21. d5 {[%emt 0:07:44]} Bxf3 {[%emt 0:00:33]} 22. Bxf3 {[%emt 0:00:13]} Ne5 {[%emt 0:00:21]} 23. Be4 {[%emt 0:00:51]} f5 {[%emt 0:00:53]} 24. Bxf5 {[%emt 0:01:59]} Rxd5 {[%emt 0:00:09]} 25. Be6 {[%emt 0:01:09]} Rxd1 {[%emt 0:00:34]} 26. Rxd1 {[%emt 0:02:46]} Qb6 {[%emt 0:00:51]} 27. Bf5 {[%emt 0:01:30]} Qf6 {[%emt 0:01:11]} 28. Be4 {[%emt 0:01:34]} Ng4 {[%emt 0:01:07]} 29. Bf3 {[%emt 0:00:09]} Qf4 {[%emt 0:00:43]} 30. Bxg4 {[%emt 0:00:10]} Qxg4 {[%emt 0:00:07]} 31. h3 {[%emt 0:00:48]} Qe6 {[%emt 0:02:26]} 32. b3 {[%emt 0:00:49]} Rc8 {[%emt 0:00:41]} 33. Qd3 {[%emt 0:01:30]} Qe5 {[%emt 0:03:15]} 34. Qf3 {[%emt 0:02:02]} b5 {[%emt 0:01:30]} 35. g3 {[%emt 0:00:57]} b4 {[%emt 0:01:04]} 36. Qb7 {[%emt 0:00:30]} Qf5 {[%emt 0:00:53]} 37. Qd7 {[%emt 0:01:35]} Rf8 {[%emt 0:01:10]} 38. Qxf5 {[%emt 0:01:04]} Rxf5 {[%emt 0:00:05]} 39. Kg2 {[%emt 0:01:20]} Rc5 {[%emt 0:01:01]} 40. Rd2 {[%emt 0:00:55]} Kh7 {[%emt 0:01:04]} 41. Kf3 {[%emt 0:30:11]} a5 {[%emt 0:30:18]} 42. Ke4 {[%emt 0:00:12]} a4 {[%emt 0:00:52]} 43. bxa4 {[%emt 0:00:31]} Ra5 {[%emt 0:01:33]} 44. Kd4 {[%emt 0:00:11]} Rxa4 {[%emt 0:00:09]} 45. Kc4 {[%emt 0:00:09]} 1-0

[Event "11th LCC FIDE Open 2019"]
[Site "London"]
[Date "2019.11.30"]
[Round "2.38"]
[White "Papadiamandis, Elliot"]
[Black "Jukes, Sam"]
[Result "1-0"]
[ECO "C55"]
[WhiteElo "2220"]
[BlackElo "1899"]
[Annotator "NA"]
[PlyCount "69"]
[EventDate "2019.11.29"]
[EventType "swiss"]
[EventCountry "ENG"]
[SourceTitle "playchess.com"]
[Source "ChessBase"]
[SourceQuality "1"]
[TimeControl "40/5400+30:1800+30"]

1. e4 {[%emt 0:00:00]} e5 {[%emt 0:00:00]} 2. Nf3 {[%emt 0:00:03]} Nc6 {[%emt 0:00:00]} 3. Bc4 {[%emt 0:00:18]} Nf6 {[%emt 0:00:00]} 4. d3 {[%emt 0:00:04]} Be7 {[%emt 0:00:05]} 5. c3 {[%emt 0:00:16]} d6 {[%emt 0:00:16]} 6. Nbd2 {[%emt 0:00:32]} O-O {[%emt 0:00:25]} 7. Bb3 {[%emt 0:00:09]} Na5 {[%emt 0:02:59]} 8. Bc2 {[%emt 0:00:13]} c5 {[%emt 0:00:08]} 9. O-O {[%emt 0:01:03]} Nc6 {[%emt 0:00:09]} 10. Re1 {[%emt 0:02:20]} Re8 {[%emt 0:01:26]} 11. Nf1 {[%emt 0:00:39] C55: Two Knights: 4 d3, 4 d4 exd4 5 e5 and Max Lange Attack} h6 {[%emt 0:02:19]} 12. Ne3 {[%emt 0:01:45]} Bf8 {[%emt 0:01:28]} 13. h3 {[%emt 0:04:38]} g6 {[%emt 0:10:41]} 14. Bb3 {[%emt 0:06:30] [#]} Be6 $146 {[%emt 0:06:13]} ({Predecessor:} 14... Bg7 15. Nh2 Be6 16. Neg4 Nxg4 17. Nxg4 Kh7 18. Ne3 Qd7 {½-½ (77) Kobalia,M (2495)-Onischuk,A (2625) Biel 1997}) 15. Bxe6 {[%emt 0:04:33]} Rxe6 {[%emt 0:00:29]} 16. Qb3 {[%emt 0:07:45]} Re7 {[%emt 0:11:05]} 17. Nh2 {[%emt 0:03:50]} Bg7 {[%emt 0:10:18]} 18. Nhg4 {[%emt 0:05:49]} Nxg4 {[%emt 0:04:56]} 19. hxg4 {[%emt 0:02:57]} Rd7 {[%emt 0:03:03]} 20. g3 {[%emt 0:01:12]} Qf6 {[%emt 0:07:44]} 21. Kg2 {[%emt 0:02:21]} Qe6 $16 {[%emt 0:03:33]} 22. Rh1 {[%emt 0:02:27]} Qxb3 {[%emt 0:00:59]} 23. axb3 {[%emt 0:00:15]} Ne7 {[%emt 0:02:11]} 24. Nc4 {[%emt 0:02:29]} Rdd8 {[%emt 0:04:25]} 25. Bxh6 {[%emt 0:04:43]} b5 {[%emt 0:00:53]} 26. Bxg7 {[%emt 0:02:40]} Kxg7 {[%emt 0:00:57]} 27. Ne3 {[%emt 0:00:27]} d5 {[%emt 0:00:59]} 28. g5 {[%emt 0:02:42]} dxe4 {[%emt 0:00:31]} 29. dxe4 {[%emt 0:00:22]} Rd2 {[%emt 0:01:11]} 30. Ng4 {[%emt 0:01:17]} Ng8 {[%emt 0:05:07]} 31. Rhd1 {[%emt 0:05:10]} Rxb2 {[%emt 0:04:10]} 32. Rd7 {[%emt 0:01:53]} Rxb3 {[%emt 0:00:16]} 33. Nxe5 {[%emt 0:00:47]} Kf8 {[%emt 0:00:12]} 34. Rxf7+ {[%emt 0:01:04]} Ke8 {[%emt 0:00:05]} 35. Rh1 {[%emt 0:00:30]} 1-0

[Event "11th LCC FIDE Open 2019"]
[Site "London"]
[Date "2019.11.30"]
[Round "2.39"]
[White "Lovell, William Pm"]
[Black "Bukojemski, Adam"]
[Result "0-1"]
[ECO "A20"]
[WhiteElo "1843"]
[BlackElo "2211"]
[Annotator "ChessBase"]
[PlyCount "50"]
[EventDate "2019.11.29"]
[EventType "swiss"]
[EventCountry "ENG"]
[SourceTitle "playchess.com"]
[Source "ChessBase"]
[SourceQuality "1"]
[TimeControl "40/5400+30:1800+30"]

1. c4 {[%emt 0:00:00]} Nf6 {[%emt 0:18:25]} 2. g3 {[%emt 0:00:00]} e5 {[%emt 0:00:16]} 3. Bg2 {[%emt 0:00:00]} Nc6 {[%emt 0:01:08]} 4. b3 {[%emt 0:07:58]} d5 {[%emt 0:00:53]} 5. d3 {[%emt 0:06:22]} Bb4+ {[%emt 0:01:04]} 6. Bd2 {[%emt 0:00:45]} Be7 {[%emt 0:00:15]} 7. Bc3 {[%emt 0:07:46]} a5 {[%emt 0:01:22]} 8. Nd2 {[%emt 0:04:44]} a4 {[%emt 0:00:46]} 9. Ngf3 {[%emt 0:02:34]} d4 {[%emt 0:00:21]} 10. Bb2 {[%emt 0:00:34]} a3 {[%emt 0:00:05]} 11. Bc1 {[%emt 0:00:13]} Bb4 {[%emt 0:01:58]} 12. O-O {[%emt 0:00:32]} O-O {[%emt 0:00:15]} 13. Ne4 {[%emt 0:06:27]} Nxe4 {[%emt 0:00:45]} 14. dxe4 {[%emt 0:00:07]} Bc3 {[%emt 0:00:50]} 15. Rb1 {[%emt 0:00:52]} Bg4 {[%emt 0:03:49]} 16. Bd2 {[%emt 0:01:39]} Bxf3 {[%emt 0:00:09]} 17. Bxf3 {[%emt 0:01:04]} Nb4 {[%emt 0:00:06]} 18. Bxc3 {[%emt 0:02:42]} dxc3 {[%emt 0:00:02]} 19. Ra1 {[%emt 0:07:08]} Qxd1 {[%emt 0:00:55]} 20. Rfxd1 {[%emt 0:00:09]} Rfd8 {[%emt 0:00:04]} 21. Rdc1 {[%emt 0:00:58]} Rd2 {[%emt 0:00:20]} 22. Rxc3 {[%emt 0:00:31]} Rxa2 {[%emt 0:00:22]} 23. Rd1 {[%emt 0:05:38]} Rb2 {[%emt 0:00:13]} 24. Rcc1 {[%emt 0:00:49]} a2 {[%emt 0:00:10]} 25. Kg2 {[%emt 0:02:58]} g6 {[%emt 0:00:38]} 0-1

[Event "11th LCC FIDE Open 2019"]
[Site "London"]
[Date "2019.11.30"]
[Round "2.40"]
[White "Russell, Christopher"]
[Black "Mugalu, Hassan"]
[Result "1-0"]
[ECO "B15"]
[WhiteElo "2190"]
[BlackElo "1836"]
[Annotator "NA"]
[PlyCount "91"]
[EventDate "2019.11.29"]
[EventType "swiss"]
[EventCountry "ENG"]
[SourceTitle "playchess.com"]
[Source "ChessBase"]
[SourceQuality "1"]
[TimeControl "40/5400+30:1800+30"]

1. e4 {[%emt 0:00:00]} c6 {[%emt 0:21:30]} 2. d4 {[%emt 0:00:00]} d5 {[%emt 0:00:30]} 3. Nc3 {[%emt 0:00:00]} dxe4 {[%emt 0:00:49]} 4. Nxe4 {[%emt 0:00:00]} g6 {[%emt 0:03:14]} 5. c3 {[%emt 0:10:49]} Nh6 {[%emt 0:03:58]} (5... Bg7 $14) 6. Bf4 {[%emt 0:08:23]} Nd7 {[%emt 0:06:15]} 7. Qe2 {[%emt 0:06:18]} Bg7 {[%emt 0:03:14]} 8. Nd6+ {[%emt 0:03:27]} Kf8 {[%emt 0:00:41]} 9. Nxc8 {[%emt 0:00:12]} Rxc8 $16 {[%emt 0:01:02]} 10. Qd2 {[%emt 0:00:24]} Nf5 {[%emt 0:02:34]} 11. O-O-O {[%emt 0:06:14]} b5 {[%emt 0:03:53]} 12. Nf3 {[%emt 0:03:33]} Nb6 {[%emt 0:04:33]} 13. Ne5 {[%emt 0:04:22]} Nd5 {[%emt 0:02:23]} 14. g4 {[%emt 0:03:33]} Nd6 {[%emt 0:02:12]} 15. Bh6 {[%emt 0:05:40]} a5 {[%emt 0:07:04]} 16. h4 {[%emt 0:02:56]} a4 {[%emt 0:05:16]} 17. a3 {[%emt 0:04:50]} Ne4 {[%emt 0:06:14]} 18. Bxg7+ {[%emt 0:01:03]} Kxg7 {[%emt 0:00:12]} 19. Qc2 {[%emt 0:00:13]} Nd6 {[%emt 0:01:29]} 20. h5 {[%emt 0:00:57]} Rf8 {[%emt 0:04:11]} 21. f3 {[%emt 0:08:24]} Rh8 {[%emt 0:06:20]} 22. Qf2 {[%emt 0:03:45]} f6 {[%emt 0:02:34]} 23. h6+ {[%emt 0:01:18]} Kf8 {[%emt 0:00:32]} 24. Nd3 {[%emt 0:00:13]} Kf7 {[%emt 0:01:07]} 25. Nc5 {[%emt 0:01:15]} Re8 {[%emt 0:00:33]} 26. f4 {[%emt 0:01:39]} Rb8 {[%emt 0:01:55]} 27. f5 {[%emt 0:06:11]} g5 {[%emt 0:00:38]} 28. Ne6 {[%emt 0:00:40]} Qc8 {[%emt 0:00:57]} 29. Qh2 {[%emt 0:01:15]} Kg8 {[%emt 0:00:30]} 30. Re1 {[%emt 0:03:56]} Nc4 {[%emt 0:00:52]} 31. Qh5 {[%emt 0:01:48]} Nf4 {[%emt 0:01:48]} 32. Nxf4 {[%emt 0:01:11]} gxf4 {[%emt 0:00:04]} 33. Re6 {[%emt 0:00:34]} Ne3 {[%emt 0:00:54]} 34. Bd3 {[%emt 0:01:25]} Nd5 {[%emt 0:03:41]} 35. g5 {[%emt 0:01:16]} Kh8 {[%emt 0:00:43]} 36. Qf7 {[%emt 0:00:14]} Rg8 {[%emt 0:00:19]} 37. g6 {[%emt 0:00:05]} hxg6 {[%emt 0:02:00]} 38. fxg6 {[%emt 0:00:17]} Rxg6 {[%emt 0:00:27]} 39. Bxg6 {[%emt 0:01:19]} Qg8 {[%emt 0:00:10]} 40. Rxc6 {[%emt 0:00:37]} b4 {[%emt 0:01:17]} 41. axb4 {[%emt 0:31:20]} f3 {[%emt 0:31:03]} 42. Rf1 {[%emt 0:01:08]} Nf4 {[%emt 0:00:23]} 43. Qg7+ {[%emt 0:03:59]} Qxg7 {[%emt 0:00:30]} 44. hxg7+ {[%emt 0:00:04]} Kxg7 {[%emt 0:00:04]} 45. Be4 {[%emt 0:00:18]} Ne2+ {[%emt 0:00:16]} 46. Kc2 {[%emt 0:00:30]} 1-0

[Event "11th LCC FIDE Open 2019"]
[Site "London"]
[Date "2019.11.30"]
[Round "2.41"]
[White "Smith, Andrew Philip"]
[Black "Chidichimo, Pedro Jose Maria"]
[Result "1-0"]
[ECO "B07"]
[WhiteElo "2172"]
[BlackElo "1831"]
[Annotator "NA"]
[PlyCount "75"]
[EventDate "2019.11.29"]
[EventType "swiss"]
[EventCountry "ENG"]
[SourceTitle "playchess.com"]
[Source "ChessBase"]
[SourceQuality "1"]
[TimeControl "40/5400+30:1800+30"]

1. e4 {[%emt 0:06:50]} d6 {[%emt 0:00:00]} 2. d4 {[%emt 0:00:13]} Nf6 {[%emt 0:00:00]} 3. Nc3 {[%emt 0:00:34]} Nbd7 {[%emt 0:00:00]} 4. g4 {[%emt 0:03:05]} h6 {[%emt 0:00:15]} 5. f3 {[%emt 0:00:58]} e5 {[%emt 0:03:14]} 6. Nge2 {[%emt 0:00:23]} c6 {[%emt 0:06:32]} 7. Be3 {[%emt 0:00:56]} Be7 {[%emt 0:14:43]} 8. Qd2 {[%emt 0:02:14]} Nh7 $16 {[%emt 0:09:19]} (8... b5 $11) 9. Ng3 {[%emt 0:13:48]} Ndf8 {[%emt 0:09:01]} 10. O-O-O {[%emt 0:04:33]} Bg5 {[%emt 0:03:21]} 11. Kb1 {[%emt 0:02:01]} Bxe3 {[%emt 0:06:25]} 12. Qxe3 {[%emt 0:01:30]} Qg5 {[%emt 0:02:50]} 13. Qf2 {[%emt 0:02:36]} g6 {[%emt 0:06:37]} 14. h4 {[%emt 0:11:18]} Qe7 {[%emt 0:00:32]} 15. dxe5 {[%emt 0:06:37]} dxe5 {[%emt 0:00:22]} 16. Qd2 {[%emt 0:00:35]} Nf6 {[%emt 0:06:42]} 17. g5 {[%emt 0:03:05]} hxg5 {[%emt 0:00:52]} 18. hxg5 {[%emt 0:00:24]} Nh5 {[%emt 0:03:31]} 19. Nxh5 {[%emt 0:03:35]} gxh5 {[%emt 0:00:21]} 20. f4 {[%emt 0:07:24]} Bg4 {[%emt 0:01:49]} 21. Be2 {[%emt 0:00:26]} Bxe2 {[%emt 0:02:25]} 22. Nxe2 {[%emt 0:01:06]} Ne6 {[%emt 0:01:28]} 23. f5 {[%emt 0:11:09]} Rd8 {[%emt 0:01:26]} 24. Qa5 {[%emt 0:03:17]} Qc7 {[%emt 0:07:13]} 25. Qxa7 {[%emt 0:03:54]} Nxg5 {[%emt 0:02:49]} 26. Rxd8+ {[%emt 0:03:48]} Kxd8 {[%emt 0:00:03]} 27. Qa8+ {[%emt 0:01:18]} Qc8 {[%emt 0:00:12]} 28. Rd1+ {[%emt 0:00:12]} Ke7 {[%emt 0:00:14]} 29. Qa3+ {[%emt 0:00:37]} c5 {[%emt 0:07:22]} 30. Nc3 {[%emt 0:01:50]} f6 {[%emt 0:01:49]} 31. Nd5+ {[%emt 0:00:34]} Kf7 {[%emt 0:00:23]} 32. Nb6 {[%emt 0:01:22]} Qc6 {[%emt 0:01:03]} 33. Rd7+ {[%emt 0:00:00]} Qxd7 {[%emt 0:01:01]} 34. Nxd7 {[%emt 0:00:00]} h4 {[%emt 0:00:02]} 35. Qb3+ {[%emt 0:00:50]} Ke7 {[%emt 0:00:39]} 36. Qxb7 {[%emt 0:00:38]} h3 {[%emt 0:00:44]} 37. Nxe5+ {[%emt 0:00:28]} Kd6 {[%emt 0:00:22]} 38. Nc4# {[%emt 0:00:09]} 1-0

[Event "11th LCC FIDE Open 2019"]
[Site "London"]
[Date "2019.11.30"]
[Round "2.42"]
[White "Ahn, Sungmin"]
[Black "Zymberi, Astrit"]
[Result "1-0"]
[ECO "B22"]
[WhiteElo "1780"]
[BlackElo "2148"]
[Annotator "NA"]
[PlyCount "69"]
[EventDate "2019.11.29"]
[EventType "swiss"]
[EventCountry "ENG"]
[SourceTitle "playchess.com"]
[Source "ChessBase"]
[SourceQuality "1"]
[TimeControl "40/5400+30:1800+30"]

1. e4 {[%emt 0:00:00]} c5 {[%emt 0:00:00]} 2. Nf3 {[%emt 0:00:00]} e6 {[%emt 0:00:00]} 3. c3 {[%emt 0:00:11]} Nf6 {[%emt 0:04:20]} 4. e5 {[%emt 0:00:14]} Nd5 {[%emt 0:00:07]} 5. d4 {[%emt 0:00:33]} cxd4 {[%emt 0:00:05]} 6. cxd4 {[%emt 0:00:06]} d6 {[%emt 0:00:10]} 7. Bc4 {[%emt 0:04:01]} Nb6 {[%emt 0:01:09]} 8. Bd3 {[%emt 0:01:01]} Nc6 {[%emt 0:04:05]} 9. O-O {[%emt 0:00:50]} Nb4 {[%emt 0:06:28]} 10. Be2 {[%emt 0:01:11]} Bd7 {[%emt 0:06:37]} 11. Nc3 {[%emt 0:04:09]} Bc6 {[%emt 0:05:11]} 12. a3 {[%emt 0:06:04]} N4d5 {[%emt 0:00:57]} 13. Ne4 {[%emt 0:09:43]} Be7 {[%emt 0:03:08]} 14. Bd3 {[%emt 0:06:29]} h6 $14 {[%emt 0:03:03]} 15. Re1 {[%emt 0:10:03]} dxe5 {[%emt 0:02:56]} 16. Nxe5 {[%emt 0:02:27]} Nf6 {[%emt 0:01:04]} 17. Nc3 {[%emt 0:18:44]} Qxd4 {[%emt 0:15:45]} 18. Nxf7 {[%emt 0:03:11]} Qh4 {[%emt 0:07:41]} 19. g3 {[%emt 0:06:18]} Qh3 {[%emt 0:03:48]} 20. Bf1 {[%emt 0:00:15]} Qf5 {[%emt 0:00:15]} 21. Nxh8 {[%emt 0:02:02]} Ng4 {[%emt 0:01:25]} 22. Qe2 {[%emt 0:05:20]} Bc5 {[%emt 0:08:16]} 23. Be3 {[%emt 0:04:32]} Nxe3 {[%emt 0:13:22]} 24. fxe3 {[%emt 0:00:03]} O-O-O {[%emt 0:00:25]} 25. b4 {[%emt 0:01:05]} Be7 {[%emt 0:02:00]} 26. Nb5 {[%emt 0:03:35]} Rxh8 {[%emt 0:08:38]} 27. Nxa7+ {[%emt 0:00:23]} Kc7 {[%emt 0:00:21]} 28. Rac1 {[%emt 0:00:33]} Ra8 {[%emt 0:00:35]} 29. Nxc6 {[%emt 0:00:30]} bxc6 {[%emt 0:00:06]} 30. Bg2 {[%emt 0:00:54]} Kd8 {[%emt 0:01:47]} 31. Red1+ {[%emt 0:00:39]} Nd5 {[%emt 0:00:45]} 32. e4 {[%emt 0:01:09]} Qe5 {[%emt 0:00:06]} 33. Qd3 {[%emt 0:00:55]} Bg5 {[%emt 0:00:30]} 34. Rxc6 {[%emt 0:00:42]} Be3+ {[%emt 0:01:09]} 35. Qxe3 {[%emt 0:00:56]} 1-0

[Event "11th LCC FIDE Open 2019"]
[Site "London"]
[Date "2019.11.30"]
[Round "2.43"]
[White "Volovich, Julia"]
[Black "Ethelontis, Alexandros N"]
[Result "0-1"]
[ECO "E39"]
[WhiteElo "1753"]
[BlackElo "2139"]
[Annotator "NA"]
[PlyCount "88"]
[EventDate "2019.11.29"]
[EventType "swiss"]
[EventCountry "ENG"]
[SourceTitle "playchess.com"]
[Source "ChessBase"]
[SourceQuality "1"]
[TimeControl "40/5400+30:1800+30"]

1. d4 {[%emt 0:00:00]} e6 {[%emt 0:01:25]} 2. c4 {[%emt 0:00:00]} Nf6 {[%emt 0:00:41]} 3. Nc3 {[%emt 0:00:00]} Bb4 {[%emt 0:00:14]} 4. Qc2 {[%emt 0:00:02]} c5 {[%emt 0:01:18]} 5. dxc5 {[%emt 0:00:06]} O-O {[%emt 0:00:06]} 6. a3 {[%emt 0:00:11]} Bxc5 {[%emt 0:00:10]} 7. Bf4 {[%emt 0:00:12]} Nc6 {[%emt 0:05:51]} 8. e3 {[%emt 0:00:39]} Be7 {[%emt 0:08:19]} 9. Nf3 {[%emt 0:10:35]} Qa5 $14 {[%emt 0:10:07]} 10. O-O-O {[%emt 0:19:06]} d5 {[%emt 0:17:09]} 11. Nb5 {[%emt 0:08:26]} dxc4 {[%emt 0:13:29]} 12. Nc7 {[%emt 0:06:45]} e5 {[%emt 0:10:49]} 13. Nxa8 {[%emt 0:07:57]} exf4 {[%emt 0:03:00]} 14. Bxc4 {[%emt 0:02:13]} Bf5 {[%emt 0:05:10]} 15. Qb3 {[%emt 0:01:34]} Qc5 {[%emt 0:04:16]} 16. Qb5 {[%emt 0:11:09]} Rxa8 {[%emt 0:01:26]} 17. Qxc5 {[%emt 0:00:08]} Bxc5 {[%emt 0:00:08]} 18. Rhe1 {[%emt 0:06:03]} fxe3 {[%emt 0:02:00]} 19. fxe3 {[%emt 0:01:37]} Rc8 {[%emt 0:02:29]} 20. Bd3 {[%emt 0:04:52]} Be6 {[%emt 0:02:18]} 21. Bc2 {[%emt 0:00:41]} g6 {[%emt 0:02:25]} 22. Ng5 {[%emt 0:08:15]} Bg4 {[%emt 0:00:51]} 23. Nf3 {[%emt 0:02:15]} h6 {[%emt 0:01:14]} 24. h3 {[%emt 0:00:45]} Be6 {[%emt 0:00:11]} 25. Kb1 {[%emt 0:02:41]} Kg7 {[%emt 0:01:38]} 26. g4 {[%emt 0:01:56]} Nd5 {[%emt 0:01:44]} 27. Bb3 {[%emt 0:00:29]} Nc3+ {[%emt 0:01:06]} 28. bxc3 {[%emt 0:00:40]} Bxb3 {[%emt 0:00:05]} 29. Rd7 {[%emt 0:00:41]} Na5 {[%emt 0:02:21]} 30. Nd4 {[%emt 0:01:56]} Bc4 {[%emt 0:01:07]} 31. Kb2 {[%emt 0:00:43]} Kf8 {[%emt 0:00:17]} 32. Nc2 {[%emt 0:01:12]} Be6 {[%emt 0:00:25]} 33. Rd3 {[%emt 0:00:14]} Nc4+ {[%emt 0:00:14]} 34. Kb1 {[%emt 0:00:39]} Nxa3+ {[%emt 0:00:42]} 35. Nxa3 {[%emt 0:00:06]} Bxa3 {[%emt 0:00:03]} 36. Red1 {[%emt 0:00:15]} Ke7 {[%emt 0:01:02]} 37. Kc2 {[%emt 0:00:07]} Bc5 {[%emt 0:00:38]} 38. Rb1 {[%emt 0:00:33]} b6 {[%emt 0:00:08]} 39. Ra1 {[%emt 0:00:10]} a5 {[%emt 0:00:05]} 40. Ra4 {[%emt 0:00:23]} Rh8 {[%emt 0:01:14]} 41. h4 {[%emt 0:31:35]} Kf6 {[%emt 0:31:54]} 42. Rf4+ {[%emt 0:00:46]} Ke5 {[%emt 0:00:00]} 43. Ra4 {[%emt 0:00:00]} h5 {[%emt 0:00:00]} 44. g5 {[%emt 0:00:00]} Bf5 {[%emt 0:00:00]} 0-1